{"text_format":"3","workbook":"xlsx","n_sheets":3,"sheets":["Dodeljene naloge","Mesečni pogled","Tedenski pogled"],"not_rendered":{"images":4,"defined_names":16},"read":"whole","date_system":"1900"}

{"sheet":"Dodeljene naloge","index":0,"n_rows":15,"n_cols":3,"rows_kept":15}
[null,"MESEČNI POGLED","TEDENSKI POGLED"]
[null," DODELJENE NALOGE"]
[null,"OPIS","ROK"]
[null,"Dodeljena naloga 1",{"$f":"TODAY()","v":"2022-12-13"}]
[null,"Dodeljena naloga 2",{"$f":"TODAY()+15","v":"2022-12-28"}]
[null,"Dodeljena naloga 3",{"$f":"TODAY()+30","v":"2023-01-12"}]
[null,"Dodeljena naloga 4",{"$f":"TODAY()+45","v":"2023-01-27"}]
[null,"Dodeljena naloga 5",{"$f":"TODAY()+60","v":"2023-02-11"}]
[null,"Dodeljena naloga 6",{"$f":"TODAY()+75","v":"2023-02-26"}]
[null,"Dodeljena naloga 7",{"$f":"TODAY()+90","v":"2023-03-13"}]
[null,"Dodeljena naloga 8",{"$f":"TODAY()+105","v":"2023-03-28"}]
[null,"Dodeljena naloga 9",{"$f":"TODAY()+115","v":"2023-04-07"}]
[null,"Dodeljena naloga 10",{"$f":"TODAY()+130","v":"2023-04-22"}]
[null,"Dodeljena naloga 11",{"$f":"TODAY()+145","v":"2023-05-07"}]
[null,"Dodeljena naloga 12",{"$f":"TODAY()+160","v":"2023-05-22"}]

{"sheet":"Mesečni pogled","index":1,"n_rows":17,"n_cols":8,"rows_kept":17}
[null,"DODELJENE NALOGE","TEDENSKI POGLED"]
[null,"Izberite mesec:","Vnesite leto:"]
[null,{"$f":"TEXT(TODAY(),\"mmmm\")","v":"december"},{"$f":"YEAR(TODAY())","v":2022}]
[null," MESEČNI POGLED"]
[null,"PONEDELJEK","TOREK","SREDA","ČETRTEK","PETEK","SOBOTA","NEDELJA"]
[null,{"$f":"IF(WEEKDAY(DATEVALUE(\" 1 \"&MeMesec&MeLeto),2)=COLUMN(A$2),1,IF(LEN(A6)>0,A6+1,\"\"))","v":""},"","",1,2,3,4]
[null,{"$f":"_xlfn.SINGLE(IF(LEN(B6)=0,\"\",IF(COUNTIF(Dodeljene_naloge[ROK],DATE(MeLeto,_xlfn.SINGLE(ŠtMeMeseca),B6))>0,\"Rok dodeljene naloge!\",\"\")))","v":""},{"$f":"_xlfn.SINGLE(IF(LEN(C6)=0,\"\",IF(COUNTIF(Dodeljene_naloge[ROK],DATE(MeLeto,_xlfn.SINGLE(ŠtMeMeseca),C6))>0,\"Rok dodeljene naloge!\",\"\")))","v":""},{"$f":"_xlfn.SINGLE(IF(LEN(D6)=0,\"\",IF(COUNTIF(Dodeljene_naloge[ROK],DATE(MeLeto,_xlfn.SINGLE(ŠtMeMeseca),D6))>0,\"Rok dodeljene naloge!\",\"\")))","v":""},{"$f":"_xlfn.SINGLE(IF(LEN(E6)=0,\"\",IF(COUNTIF(Dodeljene_naloge[ROK],DATE(MeLeto,_xlfn.SINGLE(ŠtMeMeseca),E6))>0,\"Rok dodeljene naloge!\",\"\")))","v":""},{"$f":"_xlfn.SINGLE(IF(LEN(F6)=0,\"\",IF(COUNTIF(Dodeljene_naloge[ROK],DATE(MeLeto,_xlfn.SINGLE(ŠtMeMeseca),F6))>0,\"Rok dodeljene naloge!\",\"\")))","v":""},{"$f":"_xlfn.SINGLE(IF(LEN(G6)=0,\"\",IF(COUNTIF(Dodeljene_naloge[ROK],DATE(MeLeto,_xlfn.SINGLE(ŠtMeMeseca),G6))>0,\"Rok dodeljene naloge!\",\"\")))","v":""},{"$f":"_xlfn.SINGLE(IF(LEN(H6)=0,\"\",IF(COUNTIF(Dodeljene_naloge[ROK],DATE(MeLeto,_xlfn.SINGLE(ŠtMeMeseca),H6))>0,\"Rok dodeljene naloge!\",\"\")))","v":""}]
[null,{"$f":"IF(LEN(H6)>0,IF(H6=DAY(DATE(MeLeto,ŠtMeMeseca+1,0)),\"\",H6+1),\"\")","v":5},{"$f":"IF(LEN(B8)>0,IF(B8=DAY(DATE(MeLeto,ŠtMeMeseca+1,0)),\"\",B8+1),\"\")","v":6},7,8,9,10,11]
[null,{"$f":"_xlfn.SINGLE(IF(LEN(B8)=0,\"\",IF(COUNTIF(Dodeljene_naloge[ROK],DATE(MeLeto,_xlfn.SINGLE(ŠtMeMeseca),B8))>0,\"Rok dodeljene naloge!\",\"\")))","v":""},{"$f":"_xlfn.SINGLE(IF(LEN(C8)=0,\"\",IF(COUNTIF(Dodeljene_naloge[ROK],DATE(MeLeto,_xlfn.SINGLE(ŠtMeMeseca),C8))>0,\"Rok dodeljene naloge!\",\"\")))","v":""},{"$f":"_xlfn.SINGLE(IF(LEN(D8)=0,\"\",IF(COUNTIF(Dodeljene_naloge[ROK],DATE(MeLeto,_xlfn.SINGLE(ŠtMeMeseca),D8))>0,\"Rok dodeljene naloge!\",\"\")))","v":""},{"$f":"_xlfn.SINGLE(IF(LEN(E8)=0,\"\",IF(COUNTIF(Dodeljene_naloge[ROK],DATE(MeLeto,_xlfn.SINGLE(ŠtMeMeseca),E8))>0,\"Rok dodeljene naloge!\",\"\")))","v":""},{"$f":"_xlfn.SINGLE(IF(LEN(F8)=0,\"\",IF(COUNTIF(Dodeljene_naloge[ROK],DATE(MeLeto,_xlfn.SINGLE(ŠtMeMeseca),F8))>0,\"Rok dodeljene naloge!\",\"\")))","v":""},{"$f":"_xlfn.SINGLE(IF(LEN(G8)=0,\"\",IF(COUNTIF(Dodeljene_naloge[ROK],DATE(MeLeto,_xlfn.SINGLE(ŠtMeMeseca),G8))>0,\"Rok dodeljene naloge!\",\"\")))","v":""},{"$f":"_xlfn.SINGLE(IF(LEN(H8)=0,\"\",IF(COUNTIF(Dodeljene_naloge[ROK],DATE(MeLeto,_xlfn.SINGLE(ŠtMeMeseca),H8))>0,\"Rok dodeljene naloge!\",\"\")))","v":""}]
[null,{"$f":"IF(LEN(H8)>0,IF(H8=DAY(DATE(MeLeto,ŠtMeMeseca+1,0)),\"\",H8+1),\"\")","v":12},{"$f":"IF(LEN(B10)>0,IF(B10=DAY(DATE(MeLeto,ŠtMeMeseca+1,0)),\"\",B10+1),\"\")","v":13},14,15,16,17,18]
[null,{"$f":"_xlfn.SINGLE(IF(LEN(B10)=0,\"\",IF(COUNTIF(Dodeljene_naloge[ROK],DATE(MeLeto,_xlfn.SINGLE(ŠtMeMeseca),B10))>0,\"Rok dodeljene naloge!\",\"\")))","v":""},{"$f":"_xlfn.SINGLE(IF(LEN(C10)=0,\"\",IF(COUNTIF(Dodeljene_naloge[ROK],DATE(MeLeto,_xlfn.SINGLE(ŠtMeMeseca),C10))>0,\"Rok dodeljene naloge!\",\"\")))","v":"Rok dodeljene naloge!"},{"$f":"_xlfn.SINGLE(IF(LEN(D10)=0,\"\",IF(COUNTIF(Dodeljene_naloge[ROK],DATE(MeLeto,_xlfn.SINGLE(ŠtMeMeseca),D10))>0,\"Rok dodeljene naloge!\",\"\")))","v":""},{"$f":"_xlfn.SINGLE(IF(LEN(E10)=0,\"\",IF(COUNTIF(Dodeljene_naloge[ROK],DATE(MeLeto,_xlfn.SINGLE(ŠtMeMeseca),E10))>0,\"Rok dodeljene naloge!\",\"\")))","v":""},{"$f":"_xlfn.SINGLE(IF(LEN(F10)=0,\"\",IF(COUNTIF(Dodeljene_naloge[ROK],DATE(MeLeto,_xlfn.SINGLE(ŠtMeMeseca),F10))>0,\"Rok dodeljene naloge!\",\"\")))","v":""},{"$f":"_xlfn.SINGLE(IF(LEN(G10)=0,\"\",IF(COUNTIF(Dodeljene_naloge[ROK],DATE(MeLeto,_xlfn.SINGLE(ŠtMeMeseca),G10))>0,\"Rok dodeljene naloge!\",\"\")))","v":""},{"$f":"_xlfn.SINGLE(IF(LEN(H10)=0,\"\",IF(COUNTIF(Dodeljene_naloge[ROK],DATE(MeLeto,_xlfn.SINGLE(ŠtMeMeseca),H10))>0,\"Rok dodeljene naloge!\",\"\")))","v":""}]
[null,{"$f":"IF(LEN(H10)>0,IF(H10=DAY(DATE(MeLeto,ŠtMeMeseca+1,0)),\"\",H10+1),\"\")","v":19},{"$f":"IF(LEN(B12)>0,IF(B12=DAY(DATE(MeLeto,ŠtMeMeseca+1,0)),\"\",B12+1),\"\")","v":20},21,22,23,24,25]
[null,{"$f":"_xlfn.SINGLE(IF(LEN(B12)=0,\"\",IF(COUNTIF(Dodeljene_naloge[ROK],DATE(MeLeto,_xlfn.SINGLE(ŠtMeMeseca),B12))>0,\"Rok dodeljene naloge!\",\"\")))","v":""},{"$f":"_xlfn.SINGLE(IF(LEN(C12)=0,\"\",IF(COUNTIF(Dodeljene_naloge[ROK],DATE(MeLeto,_xlfn.SINGLE(ŠtMeMeseca),C12))>0,\"Rok dodeljene naloge!\",\"\")))","v":""},{"$f":"_xlfn.SINGLE(IF(LEN(D12)=0,\"\",IF(COUNTIF(Dodeljene_naloge[ROK],DATE(MeLeto,_xlfn.SINGLE(ŠtMeMeseca),D12))>0,\"Rok dodeljene naloge!\",\"\")))","v":""},{"$f":"_xlfn.SINGLE(IF(LEN(E12)=0,\"\",IF(COUNTIF(Dodeljene_naloge[ROK],DATE(MeLeto,_xlfn.SINGLE(ŠtMeMeseca),E12))>0,\"Rok dodeljene naloge!\",\"\")))","v":""},{"$f":"_xlfn.SINGLE(IF(LEN(F12)=0,\"\",IF(COUNTIF(Dodeljene_naloge[ROK],DATE(MeLeto,_xlfn.SINGLE(ŠtMeMeseca),F12))>0,\"Rok dodeljene naloge!\",\"\")))","v":""},{"$f":"_xlfn.SINGLE(IF(LEN(G12)=0,\"\",IF(COUNTIF(Dodeljene_naloge[ROK],DATE(MeLeto,_xlfn.SINGLE(ŠtMeMeseca),G12))>0,\"Rok dodeljene naloge!\",\"\")))","v":""},{"$f":"_xlfn.SINGLE(IF(LEN(H12)=0,\"\",IF(COUNTIF(Dodeljene_naloge[ROK],DATE(MeLeto,_xlfn.SINGLE(ŠtMeMeseca),H12))>0,\"Rok dodeljene naloge!\",\"\")))","v":""}]
[null,{"$f":"IF(LEN(H12)>0,IF(H12=DAY(DATE(MeLeto,ŠtMeMeseca+1,0)),\"\",H12+1),\"\")","v":26},{"$f":"IF(LEN(B14)>0,IF(B14=DAY(DATE(MeLeto,ŠtMeMeseca+1,0)),\"\",B14+1),\"\")","v":27},28,29,30,31,""]
[null,{"$f":"_xlfn.SINGLE(IF(LEN(B14)=0,\"\",IF(COUNTIF(Dodeljene_naloge[ROK],DATE(MeLeto,_xlfn.SINGLE(ŠtMeMeseca),B14))>0,\"Rok dodeljene naloge!\",\"\")))","v":""},{"$f":"_xlfn.SINGLE(IF(LEN(C14)=0,\"\",IF(COUNTIF(Dodeljene_naloge[ROK],DATE(MeLeto,_xlfn.SINGLE(ŠtMeMeseca),C14))>0,\"Rok dodeljene naloge!\",\"\")))","v":""},{"$f":"_xlfn.SINGLE(IF(LEN(D14)=0,\"\",IF(COUNTIF(Dodeljene_naloge[ROK],DATE(MeLeto,_xlfn.SINGLE(ŠtMeMeseca),D14))>0,\"Rok dodeljene naloge!\",\"\")))","v":"Rok dodeljene naloge!"},{"$f":"_xlfn.SINGLE(IF(LEN(E14)=0,\"\",IF(COUNTIF(Dodeljene_naloge[ROK],DATE(MeLeto,_xlfn.SINGLE(ŠtMeMeseca),E14))>0,\"Rok dodeljene naloge!\",\"\")))","v":""},{"$f":"_xlfn.SINGLE(IF(LEN(F14)=0,\"\",IF(COUNTIF(Dodeljene_naloge[ROK],DATE(MeLeto,_xlfn.SINGLE(ŠtMeMeseca),F14))>0,\"Rok dodeljene naloge!\",\"\")))","v":""},{"$f":"_xlfn.SINGLE(IF(LEN(G14)=0,\"\",IF(COUNTIF(Dodeljene_naloge[ROK],DATE(MeLeto,_xlfn.SINGLE(ŠtMeMeseca),G14))>0,\"Rok dodeljene naloge!\",\"\")))","v":""},{"$f":"_xlfn.SINGLE(IF(LEN(H14)=0,\"\",IF(COUNTIF(Dodeljene_naloge[ROK],DATE(MeLeto,_xlfn.SINGLE(ŠtMeMeseca),H14))>0,\"Rok dodeljene naloge!\",\"\")))","v":""}]
[null,{"$f":"IF(LEN(H14)>0,IF(H14=DAY(DATE(MeLeto,ŠtMeMeseca+1,0)),\"\",H14+1),\"\")","v":""},{"$f":"IF(LEN(B16)>0,IF(B16=DAY(DATE(MeLeto,ŠtMeMeseca+1,0)),\"\",B16+1),\"\")","v":""},"","","","",""]
[null,{"$f":"_xlfn.SINGLE(IF(LEN(B16)=0,\"\",IF(COUNTIF(Dodeljene_naloge[ROK],DATE(MeLeto,_xlfn.SINGLE(ŠtMeMeseca),B16))>0,\"Rok dodeljene naloge!\",\"\")))","v":""},{"$f":"_xlfn.SINGLE(IF(LEN(C16)=0,\"\",IF(COUNTIF(Dodeljene_naloge[ROK],DATE(MeLeto,_xlfn.SINGLE(ŠtMeMeseca),C16))>0,\"Rok dodeljene naloge!\",\"\")))","v":""},{"$f":"_xlfn.SINGLE(IF(LEN(D16)=0,\"\",IF(COUNTIF(Dodeljene_naloge[ROK],DATE(MeLeto,_xlfn.SINGLE(ŠtMeMeseca),D16))>0,\"Rok dodeljene naloge!\",\"\")))","v":""},{"$f":"_xlfn.SINGLE(IF(LEN(E16)=0,\"\",IF(COUNTIF(Dodeljene_naloge[ROK],DATE(MeLeto,_xlfn.SINGLE(ŠtMeMeseca),E16))>0,\"Rok dodeljene naloge!\",\"\")))","v":""},{"$f":"_xlfn.SINGLE(IF(LEN(F16)=0,\"\",IF(COUNTIF(Dodeljene_naloge[ROK],DATE(MeLeto,_xlfn.SINGLE(ŠtMeMeseca),F16))>0,\"Rok dodeljene naloge!\",\"\")))","v":""},{"$f":"_xlfn.SINGLE(IF(LEN(G16)=0,\"\",IF(COUNTIF(Dodeljene_naloge[ROK],DATE(MeLeto,_xlfn.SINGLE(ŠtMeMeseca),G16))>0,\"Rok dodeljene naloge!\",\"\")))","v":""},{"$f":"_xlfn.SINGLE(IF(LEN(H16)=0,\"\",IF(COUNTIF(Dodeljene_naloge[ROK],DATE(MeLeto,_xlfn.SINGLE(ŠtMeMeseca),H16))>0,\"Rok dodeljene naloge!\",\"\")))","v":""}]

{"sheet":"Tedenski pogled","index":2,"n_rows":17,"n_cols":8,"rows_kept":17}
[null,"DODELJENE NALOGE","MESEČNI POGLED"]
[null,"Izberite mesec:","Vnesite leto:","Izberite št. tedna:"]
[null,"september",{"$f":"YEAR(TODAY())","v":2022},"1. teden"]
[null," TEDENSKI POGLED"]
[null,{"$f":"IF(WEEKDAY(DATEVALUE(\" 1 \"&TdMesec&TdLeto),2)=COLUMN(A$2),1,IF(LEN(A5)>0,A5+1,\"\"))","v":""},"","",1,2,3,4]
[null,{"$f":"IF(LEN(H5)>0,IF(H5=ZadnjiDanVMesecu_Tednu,\"\",H5+1),\"\")","v":5},{"$f":"IF(LEN(B6)>0,IF(B6=ZadnjiDanVMesecu_Tednu,\"\",B6+1),\"\")","v":6},7,8,9,10,11]
[null,{"$f":"IF(LEN(H6)>0,IF(H6=ZadnjiDanVMesecu_Tednu,\"\",H6+1),\"\")","v":12},13,14,15,16,17,18]
[null,{"$f":"IF(LEN(H7)>0,IF(H7=ZadnjiDanVMesecu_Tednu,\"\",H7+1),\"\")","v":19},20,21,22,23,24,25]
[null,{"$f":"IF(LEN(H8)>0,IF(H8=ZadnjiDanVMesecu_Tednu,\"\",H8+1),\"\")","v":26},27,28,29,30,"",""]
[null,{"$f":"IF(LEN(H9)>0,IF(H9=ZadnjiDanVMesecu_Tednu,\"\",H9+1),\"\")","v":""},"","","","","",""]
[null,"PONEDELJEK","TOREK","SREDA","ČETRTEK","PETEK","SOBOTA","NEDELJA"]
[null,{"$f":"IF(B14=\"\",IF(AND(ISNUMBER(A12),A12<ZadnjiDanVMesecu_Tednu),A12+1,\"\"),IF(B14<=7,\"\",INDEX(PogledTdMeseca,TdTeden,COLUMN(A$2))-7))","v":""},"","","","","",""]
[null,{"$f":"_xlfn.SINGLE(IF(LEN(B12)=0,\"\",IF(COUNTIF(Dodeljene_naloge[ROK],DATE(TdLeto,_xlfn.SINGLE(ŠtTdMeseca),B12))>0,\"Rok dodeljene naloge!\",\"\")))","v":""},{"$f":"_xlfn.SINGLE(IF(LEN(C12)=0,\"\",IF(COUNTIF(Dodeljene_naloge[ROK],DATE(TdLeto,_xlfn.SINGLE(ŠtTdMeseca),C12))>0,\"Rok dodeljene naloge!\",\"\")))","v":""},{"$f":"_xlfn.SINGLE(IF(LEN(D12)=0,\"\",IF(COUNTIF(Dodeljene_naloge[ROK],DATE(TdLeto,_xlfn.SINGLE(ŠtTdMeseca),D12))>0,\"Rok dodeljene naloge!\",\"\")))","v":""},{"$f":"_xlfn.SINGLE(IF(LEN(E12)=0,\"\",IF(COUNTIF(Dodeljene_naloge[ROK],DATE(TdLeto,_xlfn.SINGLE(ŠtTdMeseca),E12))>0,\"Rok dodeljene naloge!\",\"\")))","v":""},{"$f":"_xlfn.SINGLE(IF(LEN(F12)=0,\"\",IF(COUNTIF(Dodeljene_naloge[ROK],DATE(TdLeto,_xlfn.SINGLE(ŠtTdMeseca),F12))>0,\"Rok dodeljene naloge!\",\"\")))","v":""},{"$f":"_xlfn.SINGLE(IF(LEN(G12)=0,\"\",IF(COUNTIF(Dodeljene_naloge[ROK],DATE(TdLeto,_xlfn.SINGLE(ŠtTdMeseca),G12))>0,\"Rok dodeljene naloge!\",\"\")))","v":""},{"$f":"_xlfn.SINGLE(IF(LEN(H12)=0,\"\",IF(COUNTIF(Dodeljene_naloge[ROK],DATE(TdLeto,_xlfn.SINGLE(ŠtTdMeseca),H12))>0,\"Rok dodeljene naloge!\",\"\")))","v":""}]
[null,{"$f":"INDEX(PogledTdMeseca,TdTeden,COLUMN(A$2))","v":""},{"$f":"INDEX(PogledTdMeseca,TdTeden,COLUMN(B$2))","v":""},{"$f":"INDEX(PogledTdMeseca,TdTeden,COLUMN(C$2))","v":""},{"$f":"INDEX(PogledTdMeseca,TdTeden,COLUMN(D$2))","v":1},{"$f":"INDEX(PogledTdMeseca,TdTeden,COLUMN(E$2))","v":2},{"$f":"INDEX(PogledTdMeseca,TdTeden,COLUMN(F$2))","v":3},{"$f":"INDEX(PogledTdMeseca,TdTeden,COLUMN(G$2))","v":4}]
[null,{"$f":"_xlfn.SINGLE(IF(LEN(B14)=0,\"\",IF(COUNTIF(Dodeljene_naloge[ROK],DATE(TdLeto,_xlfn.SINGLE(ŠtTdMeseca),B14))>0,\"Rok dodeljene naloge!\",\"\")))","v":""},{"$f":"_xlfn.SINGLE(IF(LEN(C14)=0,\"\",IF(COUNTIF(Dodeljene_naloge[ROK],DATE(TdLeto,_xlfn.SINGLE(ŠtTdMeseca),C14))>0,\"Rok dodeljene naloge!\",\"\")))","v":""},{"$f":"_xlfn.SINGLE(IF(LEN(D14)=0,\"\",IF(COUNTIF(Dodeljene_naloge[ROK],DATE(TdLeto,_xlfn.SINGLE(ŠtTdMeseca),D14))>0,\"Rok dodeljene naloge!\",\"\")))","v":""},{"$f":"_xlfn.SINGLE(IF(LEN(E14)=0,\"\",IF(COUNTIF(Dodeljene_naloge[ROK],DATE(TdLeto,_xlfn.SINGLE(ŠtTdMeseca),E14))>0,\"Rok dodeljene naloge!\",\"\")))","v":""},{"$f":"_xlfn.SINGLE(IF(LEN(F14)=0,\"\",IF(COUNTIF(Dodeljene_naloge[ROK],DATE(TdLeto,_xlfn.SINGLE(ŠtTdMeseca),F14))>0,\"Rok dodeljene naloge!\",\"\")))","v":""},{"$f":"_xlfn.SINGLE(IF(LEN(G14)=0,\"\",IF(COUNTIF(Dodeljene_naloge[ROK],DATE(TdLeto,_xlfn.SINGLE(ŠtTdMeseca),G14))>0,\"Rok dodeljene naloge!\",\"\")))","v":""},{"$f":"_xlfn.SINGLE(IF(LEN(H14)=0,\"\",IF(COUNTIF(Dodeljene_naloge[ROK],DATE(TdLeto,_xlfn.SINGLE(ŠtTdMeseca),H14))>0,\"Rok dodeljene naloge!\",\"\")))","v":""}]
[null,{"$f":"IFERROR(IF(B14=\"\",IF(AND(ISNUMBER(A16),A16<ZadnjiDanVMesecu_Tednu),A16+1,$H$14+COLUMN(A$2)),IF(B14+7>ZadnjiDanVMesecu_Tednu,\"\",INDEX(PogledTdMeseca,TdTeden,COLUMN(A$2))+7)),\"\")","v":5},{"$f":"IFERROR(IF(C14=\"\",IF(AND(ISNUMBER(B16),B16<ZadnjiDanVMesecu_Tednu),B16+1,$H$14+COLUMN(B$2)),IF(C14+7>ZadnjiDanVMesecu_Tednu,\"\",INDEX(PogledTdMeseca,TdTeden,COLUMN(B$2))+7)),\"\")","v":6},{"$f":"IFERROR(IF(D14=\"\",IF(AND(ISNUMBER(C16),C16<ZadnjiDanVMesecu_Tednu),C16+1,$H$14+COLUMN(C$2)),IF(D14+7>ZadnjiDanVMesecu_Tednu,\"\",INDEX(PogledTdMeseca,TdTeden,COLUMN(C$2))+7)),\"\")","v":7},{"$f":"IFERROR(IF(E14=\"\",IF(AND(ISNUMBER(D16),D16<ZadnjiDanVMesecu_Tednu),D16+1,$H$14+COLUMN(D$2)),IF(E14+7>ZadnjiDanVMesecu_Tednu,\"\",INDEX(PogledTdMeseca,TdTeden,COLUMN(D$2))+7)),\"\")","v":8},{"$f":"IFERROR(IF(F14=\"\",IF(AND(ISNUMBER(E16),E16<ZadnjiDanVMesecu_Tednu),E16+1,$H$14+COLUMN(E$2)),IF(F14+7>ZadnjiDanVMesecu_Tednu,\"\",INDEX(PogledTdMeseca,TdTeden,COLUMN(E$2))+7)),\"\")","v":9},{"$f":"IFERROR(IF(G14=\"\",IF(AND(ISNUMBER(F16),F16<ZadnjiDanVMesecu_Tednu),F16+1,$H$14+COLUMN(F$2)),IF(G14+7>ZadnjiDanVMesecu_Tednu,\"\",INDEX(PogledTdMeseca,TdTeden,COLUMN(F$2))+7)),\"\")","v":10},{"$f":"IFERROR(IF(H14=\"\",IF(AND(ISNUMBER(G16),G16<ZadnjiDanVMesecu_Tednu),G16+1,$H$14+COLUMN(G$2)),IF(H14+7>ZadnjiDanVMesecu_Tednu,\"\",INDEX(PogledTdMeseca,TdTeden,COLUMN(G$2))+7)),\"\")","v":11}]
[null,{"$f":"_xlfn.SINGLE(IF(LEN(B16)=0,\"\",IF(COUNTIF(Dodeljene_naloge[ROK],DATE(TdLeto,_xlfn.SINGLE(ŠtTdMeseca),B16))>0,\"Rok dodeljene naloge!\",\"\")))","v":""},{"$f":"_xlfn.SINGLE(IF(LEN(C16)=0,\"\",IF(COUNTIF(Dodeljene_naloge[ROK],DATE(TdLeto,_xlfn.SINGLE(ŠtTdMeseca),C16))>0,\"Rok dodeljene naloge!\",\"\")))","v":""},{"$f":"_xlfn.SINGLE(IF(LEN(D16)=0,\"\",IF(COUNTIF(Dodeljene_naloge[ROK],DATE(TdLeto,_xlfn.SINGLE(ŠtTdMeseca),D16))>0,\"Rok dodeljene naloge!\",\"\")))","v":""},{"$f":"_xlfn.SINGLE(IF(LEN(E16)=0,\"\",IF(COUNTIF(Dodeljene_naloge[ROK],DATE(TdLeto,_xlfn.SINGLE(ŠtTdMeseca),E16))>0,\"Rok dodeljene naloge!\",\"\")))","v":""},{"$f":"_xlfn.SINGLE(IF(LEN(F16)=0,\"\",IF(COUNTIF(Dodeljene_naloge[ROK],DATE(TdLeto,_xlfn.SINGLE(ŠtTdMeseca),F16))>0,\"Rok dodeljene naloge!\",\"\")))","v":""},{"$f":"_xlfn.SINGLE(IF(LEN(G16)=0,\"\",IF(COUNTIF(Dodeljene_naloge[ROK],DATE(TdLeto,_xlfn.SINGLE(ŠtTdMeseca),G16))>0,\"Rok dodeljene naloge!\",\"\")))","v":""},{"$f":"_xlfn.SINGLE(IF(LEN(H16)=0,\"\",IF(COUNTIF(Dodeljene_naloge[ROK],DATE(TdLeto,_xlfn.SINGLE(ŠtTdMeseca),H16))>0,\"Rok dodeljene naloge!\",\"\")))","v":""}]